Cogmind - Beta 10.2 @@@ ROGUE MODE // 2021.10.27 @ 17:58:11 Player: Burgers_Lettuce Result: Self-destructed Performance ------------- Evolutions (1) 500 Regions Visited (2) 400 Robots Destroyed (14) 70 Value Destroyed (306) 306 Prototype IDs (0) 0 Alien Tech Used (0) 0 Bonus (0) 0 TOTAL SCORE: 1276 Bonus ------- None Cogmind --------- Core Integrity 304/400 Matter 171/300 Energy 98/100 System Corruption 0% Temperature Cool (342) Movement Core (200) Ox3 Location -9/Materials Parts ------- > --- POWER (1) -------- (None) > --- PROPULSION (2) --- (None) > --- UTILITY (3) ------ Medium Storage Unit > --- WEAPON (3) ------- Assault Rifle > --- INVENTORY (8) ---- Light Ion Engine Light Ion Engine Light Ion Engine Light Treads Small Storage Unit Medium Laser Grenade Launcher Peak State ------------ > --- POWER ------------ Improved Ion Engine > --- PROPULSION ------- Aluminum Leg Wheel > --- UTILITY ---------- Heat Sink Medium Storage Unit > --- WEAPON ----------- Spread Laser Spread Laser Light Assault Rifle > --- INVENTORY -------- Light Ion Engine Light Ion Engine Light Ion Engine Light Treads Small Storage Unit Medium Laser Assault Rifle Grenade Launcher [Rating: 11] Favorites ----------- Power Improved Ion Engine Engine Improved Ion Engine Propulsion Wheel Treads Light Treads Leg Aluminum Leg Wheel Wheel Utility Medium Storage Unit Device Heat Sink Storage Medium Storage Unit Weapon Spread Laser Energy Gun Spread Laser Ballistic Gun Light Assault Rifle Launcher Grenade Launcher Build | -11 -10 -9 ------- Run | Scr Mat Mat Slots Evolved 2 | . . 2 Power . | . . . Propulsion . | . . . Utility 1 | . . 1 Weapon 1 | . . 1 Parts Attached 19 | 6 6 7 Power 4 | 1 2 1 Engine 4 | 1 2 1 Core . | . . . Reactor . | . . . Propulsion 5 | 2 2 1 Treads 1 | 1 . . Leg 1 | . 1 . Wheel 3 | 1 1 1 Hover . | . . . Flight . | . . . Utility 3 | 1 1 1 Device 1 | . 1 . Storage 2 | 1 . 1 Processor . | . . . Hackware . | . . . Protection . | . . . Artifact . | . . . Weapon 7 | 2 1 4 Energy Gun 3 | 1 . 2 Energy Cannon . | . . . Ballistic Gun 3 | 1 . 2 Ballistic Cannon . | . . . Launcher 1 | . 1 . Special Weapon . | . . . Impact Weapon . | . . . Slashing Weapon . | . . . Piercing Weapon . | . . . Special Melee Weapon . | . . . Unidentified Prototypes . | . . . Parts Lost 7 | . . 7 Power 1 | . . 1 Propulsion 3 | . . 3 Utility 1 | . . 1 Weapon 2 | . . 2 Highest Loss Streak 5 | . . 5 Average Slot Usage (%) 81 | . 87 79 Engine 11 | . 14 11 Treads 3 | . 10 . Leg 8 | . 3 11 Wheel 11 | . 14 11 Device 3 | . 2 3 Storage 11 | . 14 11 Energy Gun 18 | . 14 20 Ballistic Gun 9 | . 8 10 Launcher 2 | . 5 1 Naked Turns . | . . . Heaviest Build 23 | 11 13 23 Greatest Support 20 | 20 10 10 Greatest Overweight (x) 2 | 1 1 2 Average Overweight (x) 1 | . 1 1 Largest Inventory Capacity 8 | 6 6 8 Average Capacity 7 | 5 6 7 Most Carried 8 | 4 6 8 Average Carried 6 | 2 5 7 Final Capacity 8 | 6 6 8 Final Carried 7 | 4 6 7 Class Distribution -------------------- 61% | Mutant 14% | Scavenger-Mutant 12% | Scavenger-Gunner 11% | Gunner Dominant Class ---------------- Mutant | -10/Materials Mutant | -9/Materials Resources | -11 -10 -9 ----------- Run | Scr Mat Mat Matter Collected 339 | 222 38 79 Remotely . | . . . Salvage Created 284 | . 92 192 Parts 28 | . 16 12 Haulers Intercepted . | . . . Recyclers Shooed . | . . . Parts Field Recycled . | . . . Retrieved Matter . | . . . Parts Self-Destructed . | . . . Prevented . | . . . Kills | -11 -10 -9 ------- Run | Scr Mat Mat Combat Hostiles Destroyed 12 | . 7 5 Guns 9 | . 4 5 AOE 3 | . 3 . Classes Destroyed 5 | . 3 2 Builder 1 | . 1 . Watcher 1 | . . 1 Swarmer 6 | . 6 . Grunt 5 | . 1 4 Sentry 1 | . . 1 Best Kill Streak 8 | . 8 2 Combat Bots Only 7 | . 7 2 Max Kills in Single Turn 2 | . 2 1 Gunslinging . | . . . Exploded 1 | . 1 . Melee . | . . . Uniques/NPCs Destroyed . | . . . Combat | -11 -10 -9 -------- Run | Scr Mat Mat Damage Taken 843 | . 278 565 Core 150 | . 54 96 Absorbed by Shields . | . . . Core Remaining (%) 89 | 100 78 . Volleys Fired 39 | . 12 27 Largest 3 | . 2 3 Hottest 150 | . 80 150 Shots Fired 80 | . 24 56 Gun 77 | . 21 56 Cannon . | . . . Launcher 3 | . 3 . Special . | . . . Kinetic 24 | . 9 15 Thermal 53 | . 12 41 Explosive 3 | . 3 . Electromagnetic . | . . . Robot Hit Streak 15 | . 2 15 Robot Miss Streak 7 | . 4 7 Penetration Max . | . . . Secondary Targets 3 | . 3 . Max Gunslinging Chain 1 | . 1 . Shots Hit Robots 56 | . 9 47 Core Hits 43 | . 12 31 Critical Hits . | . . . Critical Kills . | . . . Critical Parts Destroyed . | . . . Melee Attacks . | . . . Impact . | . . . Slashing . | . . . Piercing . | . . . Sneak Attacks . | . . . Combat Hostiles . | . . . Follow-up Attacks . | . . . Damage Inflicted 742 | . 341 401 Guns 521 | . 120 401 Cannons . | . . . Explosions 221 | . 221 . Melee . | . . . Ramming . | . . . Kinetic 89 | . 46 43 Thermal 432 | . 74 358 Explosive 221 | . 221 . Electromagnetic . | . . . Impact . | . . . Slashing . | . . . Piercing . | . . . Highest Corruption . | . . . Average Corruption . | . . . Corruption Purged . | . . . Overload Shots . | . . . Overflow Damage . | . . . Projectiles . | . . . Explosions . | . . . Melee . | . . . Knockbacks . | . . . Impact . | . . . Kinetic . | . . . Secondary . | . . . Self-Inflicted Damage 16 | . 16 . Shots 1 | . 1 . Rammed . | . . . Targets Rammed . | . . . Kicked . | . . . Crushed . | . . . Highest Temperature 540 | . 107 540 Average Temperature 164 | . 50 210 Received Heat Transfer 225 | . 12 213 Effects 6 | . . 6 Shutdowns 1 | . . 1 Energy Bleed 2 | . . 2 Interference 2 | . . 2 Matter Decay 1 | . . 1 Siege Activations . | . . . Robots Corrupted . | . . . Combat Hostiles . | . . . Parts Fried . | . . . Impact Corruptions . | . . . Robots Melted . | . . . Combat Hostiles . | . . . Parts Melted . | . . . Heat Transferred 672 | . 222 450 Parts Sabotaged . | . . . Parts Stolen . | . . . Parts Stripped . | . . . Power Chain Reactions . | . . . Missiles Intercepted . | . . . Alert | -11 -10 -9 ------- Run | Scr Mat Mat Peak Influence 330 | . 199 330 Initial 83 | . . 83 Average 160 | . 75 213 Maximum Alert Level 1 | . . 1 Low Security (%) 57 | 100 100 35 Level 1 42 | . . 64 Level 2 . | . . . Level 3 . | . . . Level 4 . | . . . Level 5 . | . . . High Security . | . . . Max Security . | . . . Squads Dispatched 4 | . . 4 Investigation 1 | . . 1 Extermination . | . . . Reinforcement 3 | . . 3 Assault . | . . . Garrison . | . . . Intercept . | . . . Construction Impeded . | . . . Haulers Reinforced . | . . . Stealth | -11 -10 -9 --------- Run | Scr Mat Mat Distress Signals 4 | . 1 3 Communications Jammed . | . . . Distress Signals . | . . . Times Spotted 26 | . 10 16 Peak Tracking Total 6 | . 6 4 Tactical Retreats 2 | . . 2 Traps | -11 -10 -9 ------- Run | Scr Mat Mat Traps Triggered . | . . . Indirectly . | . . . Trap Hack Attempts . | . . . Triggered . | . . . Disarmed . | . . . Reprogrammed . | . . . Reused . | . . . Traps Extracted . | . . . Installed . | . . . Triggered . | . . . Machines | -11 -10 -9 ---------- Run | Scr Mat Mat Machines Disabled 1 | . 1 . Max in Single Turn 1 | . 1 . Machines Sabotaged . | . . . Garrisons Compromised . | . . . Overloaded Fab Kills . | . . . Fab Network Shutdowns . | . . . Hacking | -11 -10 -9 --------- Run | Scr Mat Mat Machines Accessed 2 | . 2 . Terminals 2 | . 2 . Fabricators . | . . . Repair Stations . | . . . Recycling Units . | . . . Scanalyzers . | . . . Garrison Access . | . . . Total Hacks 6 | . 6 . Successful 2 | . 2 . Failed 4 | . 4 . Catastrophic 1 | . 1 . Database Lockouts . | . . . Manual 6 | . 6 . Terminals 6 | . 6 . Fabricators . | . . . Repair Stations . | . . . Recycling Units . | . . . Scanalyzers . | . . . Garrison Access . | . . . Terminal Hacks . | . . . Fabricator Hacks . | . . . Repair Station Hacks . | . . . Recycling Unit Hacks . | . . . Scanalyzer . | . . . Garrison Access Hacks . | . . . Unauthorized Hacks 2 | . 2 . Terminals 2 | . 2 . Botnet 2 | . 2 . Fabricators . | . . . Repair Stations . | . . . Recycling Units . | . . . Scanalyzers . | . . . Garrison Access . | . . . Data Cores Recovered . | . . . Used . | . . . Hacking Detections 2 | . 2 . Full Trace Events . | . . . Feedback Events . | . . . Feedback Blocked . | . . . Robot Schematics Acquired . | . . . Robots Built . | . . . Matter . | . . . Time . | . . . Total Robot Build Rating . | . . . Part Schematics Acquired . | . . . Parts Built . | . . . Matter . | . . . Time . | . . . Total Part Build Rating . | . . . Parts Repaired . | . . . Time . | . . . Parts Recycled . | . . . Recycled Matter . | . . . Retrieved Matter . | . . . Retrieved Components . | . . . Parts Scanalyzed . | . . . Part Schematics Acquired . | . . . Parts Damaged . | . . . Bothacking | -11 -10 -9 ------------ Run | Scr Mat Mat Used RIF Installer . | . . . Robots Hacked . | . . . Non-combat . | . . . Combat . | . . . Robot Hacks Applied . | . . . Relay Couplers Released . | . . . Robots Rewired . | . . . Allies Hacked . | . . . Hacks Repelled . | . . . Allies | -11 -10 -9 -------- Run | Scr Mat Mat Total Allies . | . . . Largest Group . | . . . Highest-Rated Group . | . . . Highest-Rated Ally . | . . . Total Orders . | . . . Ally Attacks . | . . . Total Damage . | . . . Kills . | . . . Allies Corrupted . | . . . Allies Melted . | . . . Intel | -11 -10 -9 ------- Run | Scr Mat Mat Robot Analysis Total . | . . . Derelict Logs Recovered . | . . . Drone Launches . | . . . Drone Recoveries . | . . . Exploration | -11 -10 -9 ------------- Run | Scr Mat Mat Turns Passed 504 | 46 124 334 Spaces Moved 255 | 41 87 127 Core 8 | 8 . . Treads 1 | 1 . . Legs . | . . . Wheels 246 | 32 87 127 Hover . | . . . Flight . | . . . Fastest Speed 50 | 50 90 80 Average Speed 91 | 81 90 96 Slowest Speed 160 | 160 90 100 Overloaded Moves . | . . . Propulsion Burnouts . | . . . Robots Hopped . | . . . Cave-ins Triggered . | . . . Exploration Rate (%) 14 | 3 22 18 Regions Visited 2 Branch Regions . Pre-discovered Areas . | . . . Known Exits Taken . | . . . Unknown Exits Taken 2 | 1 1 . Scrap Searched . | . . . Spaces Dug . | . . . Terrain Destroyed 11 | . 11 . Melee . | . . . Projectile . | . . . AOE 11 | . 11 . Terrain Rammed . | . . . Walls Destroyed . | . . . Machines Disabled . | . . . Actions | -11 -10 -9 --------- Run | Scr Mat Mat Total 453 | 50 108 295 Wait 129 | . . 129 Move 253 | 40 86 127 Hop . | . . . Pick Up 7 | 4 1 2 Fast Attach 12 | 6 2 4 Attach 2 | . . 2 Detach 2 | . . 2 Swap 5 | . 4 1 Drop 4 | . 3 1 Fire 39 | . 12 27 Melee . | . . . Ram . | . . . Kick . | . . . Crush . | . . . Escape Stasis . | . . . Rewire . | . . . Trap . | . . . Miscellaneous . | . . . Route ------- -11/Scrapyard -10/Materials -9/Materials History --------- Turn | Location | Event 21 | -11/Scrapyard | Discovered new exit (range 16) 47 | -11/Scrapyard | Entered Materials 151 | -10/Materials | Destroyed 7 combat bots 169 | -10/Materials | Discovered new exit (range 3) 171 | -10/Materials | Entered another Materials area 171 | -9/Materials | Evolved 2 slots: Utility x1, Weapon x1 505 | -9/Materials | Self-destructed Last Messages --------------- 00285_ Lgt. Assault Rifle temporarily disabled. 00285_ Spread Laser temporarily disabled. 00286_ Overheating: Matter decay (-37). 00287_ Overheating: Energy bleed (-33). 00287_ Acquired 42 matter. 00288_ R-06 Scavenger collects Sml. Laser. 00305_ W-16 Scout destroyed. 00309_ K-01 Serf collects debris. 00350_ O-16 Technician: "IFF HANDSHAKE FAILED. SECURING TERMINAL." 00352_ ALERT: Hostiles spotted, dispatching reinforcements to Terminal M001. 00441_ ALERT: Hostiles spotted, dispatching reinforcements to Terminal M012. 00486_ G-34 Mercenary destroyed. 00495_ Lgt. Assault Rifle severed. 00502_ Spread Laser destroyed. 00502_ Imp. Ion Engine destroyed. 00503_ Aluminum Leg destroyed. 00505_ Wheel destroyed. 00505_ Spread Laser destroyed. Map ----- +----------------------------------------------------+ | # ########?????????????????????????????????????? | | # #????????????????????????????????????????????? | | # #????????????????????????????????????????????? | | # #????????????????????????????????????????????? | | # #????????????????????????????????????????????? | | # #????????????????????????????????????????????? | | # #????????????????????????????????????????????? | | # #????????????????????????????????????????????? | | # #????????????????????????????????????????????? | | # #????????????????????????????????????????????? | | # #??????????#######???????????????????????????? | | # #??????#?! #???????????????????????????? | | # #??????# #???????????????????????????? | | # #??????# """ #???????????????????????????? | | # #??????# """ ####????????????????????????? | | # #??????# """ " + #######??????????????????? | | # #??????# T ## # #??????????????????? | | # ######## " ?# # #??????????????????? | | # #?? ???# # #??????????????????? | | # #####+###??# # """#??????????????????? | | # #### # """#??????????????????? | | ##+########### # """#??????????????????? | | ????????# +=g #??????????????????? | | """"""??????# #%g"""#??????????????????? | | """"""" ????# ######lg"""#??????????????????? | | """"""" #???## ##????#@ """#??????????????????? | | """""""??????# #?????# #??????????????????? | | """""????????# #?????# #??????????????????? | | ?????????????# #?????#######??????????????????? | | #?????????????# #??????????????????????????????? | | ??????????????# #??????????????????????????????? | | ??????????????# #??????????????????????????????? | | ??????????????# #??????????????????????????????? | | ??????????????# #??????????????????????????????? | | ??????????????# #??????????????????????????????? | | ?????????????? #??????????????????????????????? | | ??????????????? ???????????????????????????????? | | ?????????????????????????????????????????????????? | | ?????????????????????????????????????????????????? | | ?????????????????????????????????????????????????? | | ?????????????????????????????????????????????????? | | ?????????????????????????????????????????????????? | | ?????????????????????????????????????????????????? | | ?????????????????????????????????????????????????? | | ?????????????????????????????????????????????????? | | ?????????????????????????????????????????????????? | | ?????????????????????????????????????????????????? | | ?????????????????????????????????????????????????? | | ?????????????????????????????????????????????????? | | ?????????????????????????????????????????????????? | +----------------------------------------------------+ Best States ------------- Heat Dissipation 38 Energy Generation 12 Energy Capacity 265 Matter Stores 262 Matter Capacity 300 Sight Range 16 Terrain Scan Density 10 Evasion (%) 42 Recoil Reduction 1 Item Schematics ----------------- None Robot Schematics ------------------ None Fabricated ------------ Nothing Alien Tech Used ----------------- None Achievements -------------- None Challenges ------------ None Game ------ Seed GravmagMetafieldSystem Manual? 0 Play Time 00:05:36 Cumulative 49.3 hours Start 2021.10.27 @ 17:51:26 End 2021.10.27 @ 17:58:11 Sessions 3 Manual Loads 0 Difficulty Rogue Special Mode None Game No. 58 Rogue 58 Adventurer 0 Explorer 0 Win Type - Total 0 Types 0/0/0/0/0/0/0/0/0 Lore% 40 Gallery% 43 Achievement% 31 Wizard Run 0 Options --------- ASCII 0 Keyboard 1 Movement Numpad Keybinds 0 Fullscreen 2 Font 36/X11 Map View 76x50 Tactical HUD 1 Map Filters NONE Filters NONE Steam 1 RUN: efc958ae-0855-4d76-b562-f7479f233916